fUSD/lending_fUSD_20260508
["ID","MTS","AMOUNT","RATE_DAILY","PERIOD"]
[421849974,1778224244000,-500.0,0.00013698,2]
[421849982,1778224244000,-500.0,0.00013698,2]
[421849978,1778224244000,-500.0,0.00013698,2]
[421849985,1778224244000,-500.0,0.00013698,2]
[421849989,1778224244000,-500.0,0.00013698,2]
[421849988,1778224244000,-500.0,0.00013698,2]
[421849987,1778224244000,-500.0,0.00013698,2]
[421849979,1778224244000,-500.0,0.00013698,2]
[421850019,1778224244000,-500.0,0.00013698,2]
[421850020,1778224244000,-500.0,0.00013698,2]
[421850018,1778224244000,-500.0,0.00013698,2]
[421850047,1778224244000,-151.0,0.00013699,2]
[421850049,1778224244000,-9327.46,0.00013699,2]
[421850054,1778224244000,-155.93137852,0.00013699,2]
[421850053,1778224244000,-154.0,0.00013699,2]
[421850052,1778224244000,-154.0,0.00013699,2]
[421850051,1778224244000,-166.66,0.00013699,2]
[421850050,1778224244000,-2500.0,0.00013699,2]
[421850055,1778224244000,-221.6265091,0.00013699,2]
[421850057,1778224244000,-182.48387777,0.000137,2]
[421850059,1778224244000,-150.0,0.00013716,2]
[421850061,1778224244000,-150.0,0.00013718,2]
[421850056,1778224244000,-1000.0,0.00013699,2]
[421850065,1778224244000,-150.528,0.00013748,2]
[421850063,1778224244000,-150.0,0.00013742,2]
[421850067,1778224244000,-6045.0,0.00013757,2]
[421850062,1778224244000,-150.0,0.00013737,2]
[421850060,1778224244000,-150.0,0.00013718,2]
[421850064,1778224244000,-1268.0,0.00013748,2]
[421850069,1778224244000,-150.0,0.0001376,2]
[421850068,1778224244000,-929.0,0.00013757,2]
[421850071,1778224244000,-150.0,0.00013769,2]
[421850070,1778224244000,-150.0,0.00013767,2]
[421850072,1778224244000,-150.0,0.00013792,2]
[421850011,1778224244000,-500.0,0.00013698,2]
[421850066,1778224244000,-1222.0,0.00013757,2]
[421850048,1778224244000,-268.730736,0.00013699,2]
[421850058,1778224244000,-150.0,0.00013702,2]
[421850046,1778224244000,-151.0,0.00013699,2]
[421850022,1778224244000,-500.0,0.00013698,2]
[421850045,1778224244000,-151.0,0.00013699,2]
[421850032,1778224244000,-151.0,0.00013699,2]
[421850023,1778224244000,-500.0,0.00013698,2]
[421850021,1778224244000,-500.0,0.00013698,2]
[421850024,1778224244000,-500.0,0.00013698,2]
[421850026,1778224244000,-500.0,0.00013698,2]
[421850028,1778224244000,-500.0,0.00013698,2]
[421850033,1778224244000,-151.0,0.00013699,2]
[421850031,1778224244000,-153.589201,0.00013699,2]
[421850029,1778224244000,-500.0,0.00013698,2]
[421850027,1778224244000,-500.0,0.00013698,2]
[421850025,1778224244000,-500.0,0.00013698,2]
[421850040,1778224244000,-151.0,0.00013699,2]
[421850034,1778224244000,-151.0,0.00013699,2]
[421850037,1778224244000,-151.0,0.00013699,2]
[421850039,1778224244000,-200.0,0.00013699,2]
[421850036,1778224244000,-151.0,0.00013699,2]
[421850038,1778224244000,-153.743081,0.00013699,2]
[421850035,1778224244000,-151.0,0.00013699,2]
[421850043,1778224244000,-151.0,0.00013699,2]
[421850044,1778224244000,-151.0,0.00013699,2]
[421850041,1778224244000,-151.0,0.00013699,2]
[421850030,1778224244000,-599.20915568,0.00013698,2]
[421850042,1778224244000,-151.0,0.00013699,2]
[421850123,1778224245000,-150.0,0.00014157,2]
[421850110,1778224245000,-150.0,0.00014101,2]
[421850122,1778224245000,-150.203,0.00014157,2]
[421850105,1778224245000,-150.0,0.0001405,2]
[421850101,1778224245000,-150.0,0.00014021,2]
[421850104,1778224245000,-150.0,0.00014046,2]
[421850109,1778224245000,-150.0,0.00014097,2]
[421850100,1778224245000,-1608.46860732,0.00014015,2]
[421850106,1778224245000,-150.0,0.00014064,2]
[421850112,1778224245000,-1536.04360649,0.00014103,2]
[421850108,1778224245000,-150.0,0.00014072,2]
[421850114,1778224245000,-1280.93194391,0.00014103,2]
[421850126,1778224245000,-166.693,0.00014157,2]
[421850113,1778224245000,-187.78006525,0.00014103,2]
[421850115,1778224245000,-166.66,0.0001411,2]
[421850117,1778224245000,-150.0,0.0001413,2]
[421850121,1778224245000,-219.0,0.00014157,2]
[421850118,1778224245000,-150.0,0.00014143,2]
[421850120,1778224245000,-150.0,0.00014157,2]
[421850116,1778224245000,-150.0,0.00014123,2]
[421850119,1778224245000,-150.0,0.00014148,2]
[421850131,1778224245000,-150.0,0.00014173,2]
[421850127,1778224245000,-624.0,0.00014157,2]
[421850133,1778224245000,-150.0,0.00014179,2]
[421850107,1778224245000,-150.0,0.00014064,2]
[421850111,1778224245000,-200.0,0.00014103,2]
[421850102,1778224245000,-150.0,0.00014033,2]
[421850073,1778224245000,-150.0,0.00013818,2]
[421850099,1778224245000,-250.0,0.00014,2]
[421850128,1778224245000,-1352.0,0.00014157,2]
[421850074,1778224245000,-150.0,0.00013828,2]
[421850076,1778224245000,-150.0,0.00013834,2]
[421850075,1778224245000,-150.0,0.00013834,2]
[421850077,1778224245000,-166.66,0.00013836,2]
[421850080,1778224245000,-2500.0,0.00013864,2]
[421850087,1778224245000,-150.0,0.00013945,2]
[421850082,1778224245000,-150.0,0.00013894,2]
[421850081,1778224245000,-150.0,0.00013869,2]
[421850086,1778224245000,-150.0,0.00013919,2]
[421850079,1778224245000,-150.0,0.00013862,2]
[421850084,1778224245000,-362.92,0.000139,2]
[421850103,1778224245000,-3379.99771058,0.00014037,2]
[421850085,1778224245000,-150.0,0.00013916,2]
[421850083,1778224245000,-150.0,0.00013896,2]
[421850088,1778224245000,-150.0,0.00013949,2]
[421850090,1778224245000,-150.0,0.00013956,2]
[421850092,1778224245000,-150.0,0.0001397,2]
[421850089,1778224245000,-150.0,0.00013949,2]
[421850095,1778224245000,-150.0,0.00013987,2]
[421850094,1778224245000,-2000.0,0.00013984,2]
[421850097,1778224245000,-150.0,0.00013996,2]
[421850091,1778224245000,-150.0,0.00013965,2]
[421850096,1778224245000,-156.42,0.00013991,2]
[421850098,1778224245000,-150.0,0.00014,2]
[421850093,1778224245000,-166.66,0.00013973,2]
[421850078,1778224245000,-150.0,0.00013843,2]
[421850125,1778224245000,-250.0,0.00014157,2]
[421850189,1778224245000,-200.0,0.00014458,2]
[421850134,1778224245000,-150.0,0.00014199,2]
[421850160,1778224245000,-150.0,0.0001441,2]
[421850164,1778224245000,-800.0,0.00014422,2]
[421850174,1778224245000,-150.0,0.00014427,2]
[421850175,1778224245000,-150.0,0.00014441,2]
[421850163,1778224245000,-800.0,0.00014422,2]
[421850166,1778224245000,-800.0,0.00014422,2]
[421850165,1778224245000,-800.0,0.00014422,2]
[421850170,1778224245000,-800.0,0.00014422,2]
[421850173,1778224245000,-150.0,0.00014424,2]
[421850167,1778224245000,-800.0,0.00014422,2]
[421850171,1778224245000,-800.0,0.00014422,2]
[421850172,1778224245000,-505.0,0.00014422,2]
[421850158,1778224245000,-150.0,0.00014402,2]
[421850169,1778224245000,-800.0,0.00014422,2]
[421850180,1778224245000,-750.0,0.00014454,2]
[421850179,1778224245000,-750.0,0.00014454,2]
[421850178,1778224245000,-750.0,0.00014454,2]
[421850182,1778224245000,-750.0,0.00014454,2]
[421850184,1778224245000,-750.0,0.00014454,2]
[421850177,1778224245000,-750.0,0.00014454,2]
[421850181,1778224245000,-750.0,0.00014454,2]
[421850186,1778224245000,-528.0,0.00014454,2]
[421850185,1778224245000,-750.0,0.00014454,2]
[421850188,1778224245000,-200.0,0.00014458,2]
[421850187,1778224245000,-1608.46860732,0.00014457,2]
[421850124,1778224245000,-165.274,0.00014157,2]
[421850176,1778224245000,-150.0,0.00014453,2]
[421850153,1778224245000,-150.0,0.00014344,2]
[421850183,1778224245000,-750.0,0.00014454,2]
[421850157,1778224245000,-166.66,0.00014384,2]
[421850151,1778224245000,-736.0,0.0001433,2]
[421850132,1778224245000,-150.0,0.00014179,2]
[421850130,1778224245000,-150.0,0.00014169,2]
[421850136,1778224245000,-150.0,0.00014237,2]
[421850135,1778224245000,-150.0,0.00014224,2]
[421850148,1778224245000,-394.38,0.00014302,2]
[421850138,1778224245000,-150.0,0.00014237,2]
[421850137,1778224245000,-150.0,0.00014237,2]
[421850149,1778224245000,-150.0,0.00014305,2]
[421850139,1778224245000,-166.66,0.00014247,2]
[421850140,1778224245000,-150.0,0.0001425,2]
[421850144,1778224245000,-500.0,0.00014291,2]
[421850141,1778224245000,-152.079551,0.0001425,2]
[421850129,1778224245000,-925.0,0.00014157,2]
[421850142,1778224245000,-150.0,0.00014275,2]
[421850146,1778224245000,-150.0,0.00014295,2]
[421850154,1778224245000,-150.0,0.00014351,2]
[421850156,1778224245000,-150.0,0.00014377,2]
[421850152,1778224245000,-150.0,0.00014331,2]
[421850155,1778224245000,-150.0,0.00014373,2]
[421850162,1778224245000,-800.0,0.00014422,2]
[421850159,1778224245000,-150.0,0.0001441,2]
[421850150,1778224245000,-150.0,0.00014326,2]
[421850143,1778224245000,-2000.0,0.00014291,2]
[421850147,1778224245000,-150.0,0.000143,2]
[421850145,1778224245000,-150.0,0.00014295,2]
[421850161,1778224245000,-3000.0,0.00014412,2]
[421850215,1778224246000,-312.0,0.00014556,2]
[421850223,1778224246000,-150.0,0.00014612,2]
[421850222,1778224246000,-150.0,0.00014605,2]
[421850217,1778224246000,-267.0,0.0001456,2]
[421850218,1778224246000,-150.0,0.0001456,2]
[421850220,1778224246000,-150.0,0.00014578,2]
[421850221,1778224246000,-150.0,0.0001458,2]
[421850219,1778224246000,-169.0,0.0001456,2]
[421850216,1778224246000,-150.0,0.00014558,2]
[421850228,1778224246000,-150.0,0.00014619,2]
[421850225,1778224246000,-150.0,0.00014619,2]
[421850227,1778224246000,-150.0,0.00014619,2]
[421850229,1778224246000,-150.0,0.00014619,2]
[421850226,1778224246000,-150.0,0.00014619,2]
[421850230,1778224246000,-150.0,0.00014619,2]
[421850231,1778224246000,-150.0,0.00014619,2]
[421850232,1778224246000,-239.0,0.00014619,2]
[421850214,1778224246000,-250.0,0.00014556,2]
[421850233,1778224246000,-238.14729255,0.00014621,2]
[421850224,1778224246000,-150.0,0.00014619,2]
[421850213,1778224246000,-250.0,0.00014556,2]
[421850202,1778224246000,-150.0,0.00014518,2]
[421850206,1778224246000,-150.0,0.00014529,2]
[421850237,1778224246000,-168.88,0.00014644,2]
[421850190,1778224246000,-200.0,0.00014458,2]
[421850192,1778224246000,-200.0,0.00014458,2]
[421850191,1778224246000,-200.0,0.00014458,2]
[421850193,1778224246000,-200.0,0.00014458,2]
[421850195,1778224246000,-200.0,0.00014458,2]
[421850194,1778224246000,-200.0,0.00014458,2]
[421850196,1778224246000,-272.0,0.00014458,2]
[421850198,1778224246000,-150.0,0.00014478,2]
[421850207,1778224246000,-150.0,0.00014554,2]
[421850200,1778224246000,-150.0,0.00014504,2]
[421850201,1778224246000,-150.0,0.00014509,2]
[421850204,1778224246000,-150.0,0.00014525,2]
[421850211,1778224246000,-250.0,0.00014556,2]
[421850212,1778224246000,-250.0,0.00014556,2]
[421850203,1778224246000,-150.0,0.00014525,2]
[421850205,1778224246000,-3292.0,0.00014528,2]
[421850209,1778224246000,-250.0,0.00014556,2]
[421850208,1778224246000,-250.0,0.00014556,2]
[421850210,1778224246000,-250.0,0.00014556,2]
[421850199,1778224246000,-150.0,0.00014487,2]
[421850238,1778224246000,-168.88,0.00014644,2]
[421850197,1778224246000,-3379.99771058,0.00014468,2]
[421850239,1778224246000,-150.0,0.00014646,2]
[421850270,1778224246000,-150.0,0.00014871,2]
[421850272,1778224246000,-150.0,0.00014885,2]
[421850274,1778224246000,-230.16674428,0.000149,2]
[421850276,1778224246000,-230.16674427,0.000149,2]
[421850273,1778224246000,-150.0,0.00014893,2]
[421850284,1778224246000,-150.0,0.00014961,2]
[421850277,1778224246000,-1608.46860732,0.000149,2]
[421850283,1778224246000,-3500.0,0.0001496,2]
[421850275,1778224246000,-230.16674427,0.000149,2]
[421850266,1778224246000,-150.0,0.00014808,2]
[421850278,1778224246000,-3379.99771058,0.000149,2]
[421850289,1778224246000,-171.65004053,0.00014986,2]
[421850280,1778224246000,-150.0,0.0001491,2]
[421850282,1778224246000,-150.0,0.00014936,2]
[421850281,1778224246000,-150.0,0.00014918,2]
[421850286,1778224246000,-234.66951995,0.00014986,2]
[421850285,1778224246000,-150.0,0.00014985,2]
[421850288,1778224246000,-162.57939543,0.00014986,2]
[421850287,1778224246000,-157.5217422,0.00014986,2]
[421850240,1778224246000,-200.0,0.00014651,2]
[421850279,1778224246000,-648.81196857,0.000149,2]
[421850269,1778224246000,-150.0,0.00014859,2]
[421850290,1778224246000,-279.99629778,0.00014986,2]
[421850271,1778224246000,-150.0,0.00014871,2]
[421850260,1778224246000,-150.0,0.00014758,2]
[421850235,1778224246000,-150.0,0.0001464,2]
[421850234,1778224246000,-150.0,0.00014631,2]
[421850236,1778224246000,-150.0,0.0001464,2]
[421850245,1778224246000,-150.0,0.00014656,2]
[421850248,1778224246000,-150.0,0.00014681,2]
[421850251,1778224246000,-150.0,0.00014705,2]
[421850254,1778224246000,-150.0,0.00014732,2]
[421850252,1778224246000,-150.0,0.00014707,2]
[421850257,1778224246000,-152.0,0.00014743,2]
[421850242,1778224246000,-194.72792766,0.00014651,2]
[421850258,1778224246000,-150.0,0.00014756,2]
[421850255,1778224246000,-150.0,0.00014737,2]
[421850264,1778224246000,-150.0,0.00014783,2]
[421850265,1778224246000,-150.0,0.00014799,2]
[421850262,1778224246000,-150.0,0.00014782,2]
[421850268,1778224246000,-150.0,0.0001485,2]
[421850261,1778224246000,-150.0,0.00014772,2]
[421850259,1778224246000,-150.0,0.00014756,2]
[421850256,1778224246000,-292.916363,0.00014743,2]
[421850253,1778224246000,-150.0,0.00014714,2]
[421850267,1778224246000,-150.0,0.00014834,2]
[421850304,1778224247000,-846.22880393,0.00015,2]
[421850302,1778224247000,-2565.98624479,0.00015,2]
[421850312,1778224247000,-5236.52400493,0.00015,2]
[421850306,1778224247000,-458.87313864,0.00015,2]
[421850303,1778224247000,-630.80950028,0.00015,2]
[421850300,1778224247000,-3114.16252253,0.00015,2]
[421850296,1778224247000,-10999.3151,0.00015,2]
[421850298,1778224247000,-649.29216344,0.00015,2]
[421850297,1778224247000,-5468.80132686,0.00015,2]
[421850299,1778224247000,-10036.53722516,0.00015,2]
[421850293,1778224247000,-1385067.00900962,0.00015,2]
[421850292,1778224247000,-157.24131601,0.00014986,2]
[421850291,1778224247000,-295.73985248,0.00014986,2]
[421850307,1778224247000,-3121.30642487,0.00015,2]
[421850301,1778224247000,-1979.65645078,0.00015,2]
[421850305,1778224247000,-272.24010028,0.00015,2]
[421850318,1778224247000,-3382.90450776,0.00013758,2]
[421850309,1778224247000,-449.12569147,0.00015,2]
[421850325,1778224247000,-21930.41652322,0.00015,2]
[421850326,1778224247000,-2308.76179217,0.00015,2]
[421850310,1778224247000,-60696.20989375,0.00015,2]
[421850321,1778224247000,-1017.12352263,0.00015,2]
[421850323,1778224247000,-3743.09066726,0.00015,2]
[421850322,1778224247000,-372.93231267,0.00015,2]
[421850324,1778224247000,-408.71593351,0.00015,2]
[421850320,1778224247000,-1296.09290658,0.00015,2]
[421850319,1778224247000,-15621.57580663,0.00015,2]
[421850315,1778224247000,-10.11118851,0.000119,2]
[421850317,1778224247000,-243.09549224,0.00013758,2]
[421850314,1778224247000,-2609.81101659,0.00011483,2]
[421850313,1778224247000,-14841.65212631,0.00015,2]
[421850311,1778224247000,-132402.20182951,0.00015,2]
[421850308,1778224247000,-3575.413935,0.00015,2]
[421850316,1778224247000,-183.27260038,0.000119,2]
[421850330,1778224266000,-2609.81101659,0.00012053,2]
[421850331,1778224333000,-2609.81101659,0.00012622,2]
[421850333,1778224333000,5000.01,0.00010816,2]
[421850334,1778224333000,-2609.81101659,0.00010816,2]
[421850332,1778224333000,-2609.81101659,0.00013192,2]
[421850337,1778224334000,-300.0,0.00010815,2]
[421850338,1778224334000,-2309.81101659,0.00010816,2]
[421850336,1778224334000,-2609.81101659,0.00010816,2]
[421850335,1778224334000,-2609.81101659,0.00010816,2]
[421850339,1778224463000,-150.0,0.00010815,2]
[421850341,1778224463000,-3865.20723364,0.00010816,2]
[421850343,1778224463000,-25224.52286636,0.00010816,2]
[421850340,1778224463000,-300.0,0.00010815,2]
[421850342,1778224463000,-20460.2699,0.00010816,2]
[421850347,1778224885000,499.99,0.00030137,120]
[421850348,1778224905000,151.000001,0.00025,120]
[421850349,1778224924000,511.02,0.00030137,120]
[421850357,1778225054000,-36584.8838,0.00010815,2]
[421850358,1778225054000,-4581.41978603,0.00010816,2]
[421850356,1778225054000,-682.28151265,0.00010814,2]
[421850355,1778225054000,-201.41490132,0.00010814,2]
[421850354,1778225054000,-250.0,0.00010814,2]
[421850353,1778225054000,-500.0,0.00010814,2]
[421850352,1778225054000,-1200.0,0.00010814,2]
[421850359,1778225089000,-6000.0,0.00010715,2]
[421850361,1778225313000,-250.0,0.00010704,2]
[421850362,1778225313000,-11450.0,0.00010705,2]
[421850360,1778225313000,-300.0,0.00010704,2]
[421850371,1778225336000,-12542.85445072,0.00010715,2]
[421850370,1778225336000,-150.0,0.00010714,2]
[421850369,1778225336000,-1200.0,0.00010714,2]
[421850368,1778225336000,-300.0,0.00010714,2]
[421850367,1778225336000,-500.0,0.00010714,2]
[421850365,1778225336000,-241.64,0.00010683,2]
[421850366,1778225336000,-35065.50554928,0.00010705,2]
[421850372,1778225348000,-50000.0,0.00010715,2]
[421850375,1778225365000,-200.0,0.0001078,2]
[421850374,1778225365000,-679.5,0.00010715,2]
[421850373,1778225365000,-979.06194928,0.00010715,2]
[421850376,1778225369000,181.92049384,0.00010711,2]
[421850377,1778225384000,-938.10380888,0.00010815,2]
[421850378,1778225384000,-2791.85734761,0.00010816,2]
[421850379,1778225384000,-150.0,0.00010922,2]
[421850380,1778225384000,-150.0,0.00010959,2]
[421850381,1778225397000,-150.0,0.0001103,2]
[421850382,1778225397000,-271.0,0.00011138,2]
[421850446,1778225438000,-500.0,0.00011759,2]
[421850454,1778225438000,-500.0,0.00011759,2]
[421850459,1778225438000,-500.0,0.00011759,2]
[421850451,1778225438000,-500.0,0.00011759,2]
[421850458,1778225438000,-500.0,0.00011759,2]
[421850453,1778225438000,-500.0,0.00011759,2]
[421850452,1778225438000,-500.0,0.00011759,2]
[421850455,1778225438000,-500.0,0.00011759,2]
[421850460,1778225438000,-500.0,0.00011759,2]
[421850456,1778225438000,-500.0,0.00011759,2]
[421850457,1778225438000,-500.0,0.00011759,2]
[421850469,1778225438000,-206.07038702,0.00011759,2]
[421850443,1778225438000,-500.0,0.00011759,2]
[421850474,1778225438000,-500.0,0.00011759,2]
[421850463,1778225438000,-500.0,0.00011759,2]
[421850465,1778225438000,-500.0,0.00011759,2]
[421850471,1778225438000,-174.45893463,0.00011759,2]
[421850473,1778225438000,-325.54106537,0.00011759,2]
[421850468,1778225438000,-293.92961298,0.00011759,2]
[421850462,1778225438000,-500.0,0.00011759,2]
[421850467,1778225438000,-500.0,0.00011759,2]
[421850461,1778225438000,-500.0,0.00011759,2]
[421850466,1778225438000,-500.0,0.00011759,2]
[421850464,1778225438000,-500.0,0.00011759,2]
[421850475,1778225438000,-500.0,0.00011759,2]
[421850433,1778225438000,-150.0,0.00011758,2]
[421850441,1778225438000,-500.0,0.00011759,2]
[421850422,1778225438000,-169.87,0.00011251,2]
[421850423,1778225438000,-163.1,0.00011265,2]
[421850431,1778225438000,-3586.12711011,0.00011666,2]
[421850429,1778225438000,-296.6104039,0.00011621,2]
[421850428,1778225438000,-150.0,0.00011621,2]
[421850427,1778225438000,-150.0,0.00011621,2]
[421850426,1778225438000,-150.0,0.00011621,2]
[421850437,1778225438000,-500.0,0.00011759,2]
[421850424,1778225438000,-2000.0,0.00011535,2]
[421850435,1778225438000,-500.0,0.00011759,2]
[421850436,1778225438000,-500.0,0.00011759,2]
[421850444,1778225438000,-500.0,0.00011759,2]
[421850434,1778225438000,-500.0,0.00011759,2]
[421850425,1778225438000,-1200.0,0.0001162,2]
[421850430,1778225438000,-999.99,0.00011621,2]
[421850445,1778225438000,-500.0,0.00011759,2]
[421850449,1778225438000,-500.0,0.00011759,2]
[421850442,1778225438000,-500.0,0.00011759,2]
[421850438,1778225438000,-500.0,0.00011759,2]
[421850448,1778225438000,-500.0,0.00011759,2]
[421850450,1778225438000,-500.0,0.00011759,2]
[421850439,1778225438000,-500.0,0.00011759,2]
[421850447,1778225438000,-500.0,0.00011759,2]
[421850440,1778225438000,-500.0,0.00011759,2]
[421850432,1778225438000,-181.92049383,0.00011675,2]
[421850482,1778225438000,-500.0,0.00011759,2]
[421850517,1778225438000,-4354.16,0.00011895,2]
[421850478,1778225438000,-267.22242847,0.00011759,2]
[421850520,1778225438000,-362.07,0.00011895,2]
[421850513,1778225438000,-211.6337643,0.00011895,2]
[421850528,1778225438000,-250.0,0.00012376,2]
[421850504,1778225438000,-250.0,0.00011786,2]
[421850534,1778225438000,-163.1,0.00012505,2]
[421850536,1778225438000,-500.0,0.00012634,2]
[421850540,1778225438000,-500.0,0.00012634,2]
[421850538,1778225438000,-500.0,0.00012634,2]
[421850552,1778225438000,-150.0,0.00012634,2]
[421850554,1778225438000,-510.23889792,0.00012634,2]
[421850532,1778225438000,-174.02,0.00012423,2]
[421850530,1778225438000,-3586.12711009,0.00012385,2]
[421850550,1778225438000,-500.0,0.00012634,2]
[421850548,1778225438000,-504.37215118,0.00012634,2]
[421850556,1778225438000,-150.0,0.00012634,2]
[421850561,1778225438000,-150.0,0.00012634,2]
[421850567,1778225438000,-150.0,0.00012634,2]
[421850559,1778225438000,-150.0,0.00012634,2]
[421850563,1778225438000,-238.87887112,0.00012634,2]
[421850565,1778225438000,-150.0,0.00012634,2]
[421850574,1778225438000,-150.0,0.00012634,2]
[421850571,1778225438000,-150.0,0.00012634,2]
[421850569,1778225438000,-150.0,0.00012634,2]
[421850480,1778225438000,-500.0,0.00011759,2]
[421850543,1778225438000,-500.0,0.00012634,2]
[421850509,1778225438000,-3549.14,0.00011885,2]
[421850546,1778225438000,-500.0,0.00012634,2]
[421850511,1778225438000,-163.1,0.00011885,2]
[421850524,1778225438000,-174.02,0.00012127,2]
[421850479,1778225438000,-500.0,0.00011759,2]
[421850476,1778225438000,-500.0,0.00011759,2]
[421850483,1778225438000,-500.0,0.00011759,2]
[421850477,1778225438000,-500.0,0.00011759,2]
[421850481,1778225438000,-500.0,0.00011759,2]
[421850486,1778225438000,-500.0,0.00011759,2]
[421850484,1778225438000,-500.0,0.00011759,2]
[421850488,1778225438000,-9999.99,0.00011759,2]
[421850489,1778225438000,-299.99,0.00011759,2]
[421850492,1778225438000,-193.0,0.00011774,2]
[421850487,1778225438000,-500.0,0.00011759,2]
[421850485,1778225438000,-500.0,0.00011759,2]
[421850515,1778225438000,-4558.85,0.00011895,2]
[421850496,1778225438000,-447.07,0.00011774,2]
[421850507,1778225438000,-174.02,0.00011831,2]
[421850526,1778225438000,-169.88,0.00012322,2]
[421850495,1778225438000,-5849.31,0.00011774,2]
[421850494,1778225438000,-250.0,0.00011774,2]
[421850522,1778225438000,-3586.12711009,0.00012025,2]
[421850493,1778225438000,-500.0,0.00011774,2]
[421850491,1778225438000,-119258.72478187,0.0001176,2]
[421850490,1778225438000,-24999.99,0.00011759,2]
[421850497,1778225438000,-150.99,0.00011774,2]
[421850501,1778225438000,-5000.0,0.00011786,2]
[421850646,1778225439000,-500.0,0.00012907,2]
[421850640,1778225439000,-151.0,0.00012907,2]
[421850639,1778225439000,-500.0,0.00012907,2]
[421850633,1778225439000,-500.0,0.00012907,2]
[421850641,1778225439000,-500.0,0.00012907,2]
[421850636,1778225439000,-500.0,0.00012907,2]
[421850643,1778225439000,-500.0,0.00012907,2]
[421850644,1778225439000,-500.0,0.00012907,2]
[421850647,1778225439000,-151.0,0.00012907,2]
[421850635,1778225439000,-151.0,0.00012907,2]
[421850645,1778225439000,-500.0,0.00012907,2]
[421850637,1778225439000,-151.0,0.00012907,2]
[421850642,1778225439000,-500.0,0.00012907,2]
[421850648,1778225439000,-500.0,0.00012907,2]
[421850649,1778225439000,-500.0,0.00012907,2]
[421850650,1778225439000,-500.0,0.00012907,2]
[421850651,1778225439000,-521.59780311,0.00012907,2]
[421850659,1778225439000,-500.0,0.00012973,2]
[421850655,1778225439000,-151.0,0.00012962,2]
[421850656,1778225439000,-396.70170545,0.00012973,2]
[421850653,1778225439000,-2080.17592889,0.00012907,2]
[421850654,1778225439000,-23765.97688584,0.00012908,2]
[421850658,1778225439000,-500.0,0.00012973,2]
[421850657,1778225439000,-500.0,0.00012973,2]
[421850660,1778225439000,-411.91380021,0.00012973,2]
[421850652,1778225439000,-174.61919141,0.00012907,2]
[421850638,1778225439000,-500.0,0.00012907,2]
[421850580,1778225439000,-3586.12711009,0.00012744,2]
[421850622,1778225439000,-500.0,0.00012907,2]
[421850576,1778225439000,-250.0,0.00012634,2]
[421850578,1778225439000,-174.02,0.00012719,2]
[421850663,1778225439000,-500.0,0.00012973,2]
[421850584,1778225439000,-2067.38361915,0.00012807,2]
[421850588,1778225439000,-578.20924308,0.00012907,2]
[421850582,1778225439000,-1680.0,0.00012782,2]
[421850586,1778225439000,-255.0,0.00012828,2]
[421850590,1778225439000,-200.0,0.00012907,2]
[421850594,1778225439000,-1428.38747117,0.00012907,2]
[421850600,1778225439000,-151.0,0.00012907,2]